Workbook

Sheet Instructions and Summary
A1: Budget Justification for SF 424A Budget | E1: Last Updated / Version # : | G1: 8/24/2021 V 6.19
A2: Instructions and Summary
A3: Control Number: | D3: Original Date of Submission:
A4: Award Recipient: | D4: Submitted by: | G4: (Recipient or Subrecipient)
A6: Please read the instructions on each tab before starting. If you have any questions, please submit to ARPA-E-CO@hq.doe.gov. It will save you time! Double check all fields highlighted in yellow!
A7: • This worksheet auto populates when data is entered on subsequent tabs (a. Personnel, b. Fringe Benefits, c. Travel, d. Equipment, e. Supplies, f. Contractual, g. Other, h. Indirect Costs, Cost Share). The term “tab” refers to a worksheet within the Budget Justification Workbook. Each tab may be found and accessed at the bottom of this Workbook. On this Instructions and Summary tab the award recipient should update Control Number, Award Recipient, Original Date of Submission, Submitted By and the Comments section as needed. If this is a new version please ensure to update the Last Updated / Version # in the top right of this sheet. X • The Prime Recipient must complete this Budget Justification Workbook. In addition, each Subrecipient incurring greater than or equal to 10% of the Total Project Cost must complete an additional Budget Justification Workbook to justify its proposed budget. The Subrecipient's Budget Justification Workbook total project costs must match the amount on tab f. Contractual in the Prime Recipient’s Budget Justification Workbook. All documents should be submitted as one package to ARPA-E, however, subrecipients can provide budget documents directly to ARPA-E if necessary. The Prime Recipient’s Budget Justification Workbook will not be reviewed until all supporting documentation is submitted. • The total budget presented in the Budget Justification Workbook and the SF-424A must include both Federal (ARPA-E) and Non-Federal (cost share) expenditures, the sum of which equals the Total Project Cost proposed by the Applicant. All costs, whether paid with Federal funding or by the Project Team, must be justified. • Each budget category will automatically populate in the second tab in this Budget Justification Workbook (SF-424A). The totals in each budget category and the Total Project Cost must be the same in the SF-424A and the Budget Justification Workbook. The award recipient must review the SF-424A, fill in the award number and fill in Section D (Projected Cash Flows) in the SF-424A tab. • All costs incurred by the Prime Recipient’s Subrecipients, vendors, contractors, consultants and Federally Funded Research and Development Centers (FFRDCs), must be entered in tab f. Contractual. All other sections are for the costs of the Prime Recipient only. • No individual may be paid more than $200,000 per year under an ARPA-E funding agreement. • All expenditures must be allowable, allocable, and reasonable in accordance with the applicable Federal cost principles.
A9: SUMMARY OF BUDGET CATEGORY COSTS PROPOSED (Note: The values in this summary table are from entries made in each budget category tab.)
A10: CATEGORY | B10: Year 1 | C10: Year 2 | D10: Year 3 | E10: Total Costs | F10: Project Costs % | G10: Comments (Add comments as needed)
A11: a. Personnel | B11: =ROUND('a. Personnel'!E180,0) -> 0 | C11: =ROUND('a. Personnel'!H180,0) -> 0 | D11: =ROUND('a. Personnel'!K180,0) -> 0 | E11: =SUM(B11:D11) -> 0 | F11: =IFERROR(E11/$E$24,"") -> 
A12: b. Fringe Benefits | B12: =ROUND('b. Fringe Benefits'!D10,0) -> 0 | C12: =ROUND('b. Fringe Benefits'!E10,0) -> 0 | D12: =ROUND('b. Fringe Benefits'!F10,0) -> 0 | E12: 0 | F12: =IFERROR(E12/$E$24,"") -> 
A13: c. Travel | B13: =ROUND('c. Travel'!G48,0) -> 0 | C13: =ROUND('c. Travel'!G91,0) -> 0 | D13: =ROUND('c. Travel'!G134,0) -> 0 | E13: 0 | F13: =IFERROR(E13/$E$24,"") -> 
A14: d. Equipment | B14: =ROUND('d. Equipment'!D56,0) -> 0 | C14: =ROUND('d. Equipment'!D107,0) -> 0 | D14: =ROUND('d. Equipment'!D158,0) -> 0 | E14: 0 | F14: =IFERROR(E14/$E$24,"") -> 
A15: e. Supplies | B15: =ROUND('e. Supplies'!D80,0) -> 0 | C15: =ROUND('e. Supplies'!D153,0) -> 0 | D15: =ROUND('e. Supplies'!D226,0) -> 0 | E15: 0 | F15: =IFERROR(E15/$E$24,"") -> 
A16: f. Contractual
A17: Sub-recipient | B17: =ROUND('f. Contractual'!C21,0) -> 0 | C17: =ROUND('f. Contractual'!D21,0) -> 0 | D17: =ROUND('f. Contractual'!E21,0) -> 0 | E17: =SUM(B17:D17) -> 0 | F17: =IFERROR(E17/$E$24,"") -> 
A18: FFRDC | B18: =ROUND('f. Contractual'!C48,0) -> 0 | C18: =ROUND('f. Contractual'!D48,0) -> 0 | D18: =ROUND('f. Contractual'!E48,0) -> 0 | E18: 0
A19: Vendor | B19: =ROUND('f. Contractual'!C35,0) -> 0 | C19: =ROUND('f. Contractual'!D35,0) -> 0 | D19: =ROUND('f. Contractual'!E35,0) -> 0 | E19: 0
A20: Total Contractual | B20: =SUM(B17:B19) -> 0 | C20: =SUM(C17:C19) -> 0 | D20: 0 | E20: 0
A21: g. Construction | B21: =ROUND('g. Construction'!B16,0) -> 0 | C21: =ROUND('g. Construction'!B24,0) -> 0 | D21: =ROUND('g. Construction'!B32,0) -> 0 | E21: 0
A22: h. Other Direct Costs | B22: =ROUND('h. Other'!B44,0) -> 0 | C22: =ROUND('h. Other'!B67,0) -> 0 | D22: =ROUND('h. Other'!B90,0) -> 0 | E22: =SUM(B22:D22) -> 0
A23: i. Indirect Charges | B23: =ROUND('i. Indirect Costs'!D9,0) -> 0 | C23: =ROUND('i. Indirect Costs'!E9,0) -> 0 | D23: =ROUND('i. Indirect Costs'!F9,0) -> 0 | E23: =SUM(B23:D23) -> 0
A24: Total Project Costs | B24: =SUM(B11:B15,B20:B23) -> 0 | C24: =SUM(C11:C15,C20:C23) -> 0 | D24: =SUM(D11:D15,D20:D23) -> 0 | E24: =SUM(E11:E15,E20:E23) -> 0 | F24: =IFERROR(SUM(F11:F23)-F20,"") -> 
A26: Additional Explanations/Comments (as necessary):

Sheet SF-424A (Rev. 4-92) (hidden)
A1: Applicant Name: | E1: Award Number:
A2: Budget Information - Non Construction Programs
A3: OMB Approval No. 0348-0044
A4: Section A - Budget Summary
B5: Grant Program Function or Activity | C5: Catalog of Federal Domestic Assistance Number | D5: Estimated Unobligated Funds | F5: New or Revised Budget
D6: Federal | E6: Non-Federal | F6: Federal | G6: Non-Federal | H6: Total
B7: (a) | C7: (b) | D7: (c ) | E7: (d) | F7: (e) | G7: (f) | H7: (g)
A8: 1. | H8: =SUM(D8:G8) -> 0
A9: 2. | H9: =SUM(D9:G9) -> 0
A10: 3. | H10: =SUM(D10:G10) -> 0
A11: 4. | H11: =SUM(D11:G11) -> 0
A12: 5. | B12: Totals | D12: =SUM(D8:D11) -> 0 | E12: =SUM(E8:E11) -> 0 | F12: =SUM(F8:F11) -> 0 | G12: =SUM(G8:G11) -> 0 | H12: =SUM(H8:H11) -> 0
A13: Section B - Budget Categories
A14: 6. | B14: Object Class Categories | D14: Grant Program, Function or Activity | H14: Total (5)
D15: (1) | E15: (2) | F15: (3) | G15: (4)
B16: a. Personnel | H16: =SUM(D16:G16) -> 0
B17: b. Fringe Benefits | H17: 0
B18: c. Travel | H18: 0
B19: d. Equipment | H19: 0
B20: e. Supplies | H20: 0
B21: f. Contractual | H21: 0
B22: g. Construction | H22: 0
B23: h. Other | H23: 0
B24: i. Total Direct Charges (sum of 6a-6h) | D24: =SUM(D16:D23) -> 0 | E24: =SUM(E16:E23) -> 0 | F24: =SUM(F16:F23) -> 0 | G24: =SUM(G16:G23) -> 0 | H24: 0
B25: j. Indirect Charges | H25: 0
B26: k. Totals (sum of 6i-6j) | D26: =SUM(D24:D25) -> 0 | E26: =SUM(E24:E25) -> 0 | F26: =SUM(F24:F25) -> 0 | G26: =SUM(G24:G25) -> 0 | H26: =SUM(H24:H25) -> 0
A28: 7. | B28: Program Income | H28: =SUM(D28:G28) -> 0
H30: SF-424A (Rev. 4-92)
A31: Previous Edition Usable | G31: Prescribed by OMB Circular A-102
A32: Authorized for Local Reproduction
A34: Section C - Non-Federal Resources
B35: (a) Grant Program | E35: (b) Applicant | F35: (c ) State | G35: (d) Other Sources | H35: (e) Totals
A36: 8. | H36: =SUM(E36:G36) -> 0
A37: 9. | H37: =SUM(E37:G37) -> 0
A38: 10. | H38: =SUM(E38:G38) -> 0
A39: 11. | H39: =SUM(E39:G39) -> 0
A40: 12. | B40: Total (sum of lines 8 - 11) | E40: =SUM(E36:E39) -> 0 | F40: =SUM(F36:F39) -> 0 | G40: =SUM(G36:G39) -> 0 | H40: =SUM(H36:H39) -> 0
A41: Section D - Forecasted Cash Needs
D42: Total for 1st Year | E42: 1st Quarter | F42: 2nd Quarter | G42: 3rd Quarter | H42: 4th quarter
A43: 13. | B43: Federal | D43: =SUM(E43:H43) -> 0
A44: 14. | B44: Non-Federal | D44: =SUM(E44:H44) -> 0
A45: 15. | B45: Total (sum of lines 13 and 14) | D45: =SUM(D43:D44) -> 0 | E45: =SUM(E43:E44) -> 0 | F45: =SUM(F43:F44) -> 0 | G45: =SUM(G43:G44) -> 0 | H45: =SUM(H43:H44) -> 0
A46: Section E - Budget Estimates of Federal Funds Needed for Balance of the Project
A47: (a) Grant Program | E47: Future Funding Periods (Years)
E48: (b) First | F48: (c ) Second | G48: (d) Third | H48: (e) Fourth
A49: 16.
A50: 17.
A51: 18.
A52: 19.
A53: 20. | B53: Total (sum of lines 16-19) | E53: =SUM(E49:E52) -> 0 | F53: =SUM(F49:F52) -> 0 | G53: =SUM(G49:G52) -> 0 | H53: =SUM(H49:H52) -> 0
A54: Section F - Other Budget Information
A55: 21. Direct Charges | E55: 22. Indirect Charges
A57: 23. Remarks
H61: SF-424A (Rev. 4-92)
A62: Previous Edition Usable | H62: Prescribed by OMB Circular A-102
C63: Authorized for Local Reproduction

Sheet SF-424A
A1: Applicant Name: | C1: ='Instructions and Summary'!B4 -> 0 | E1: Award Number:
A2: Budget Information - Non Construction Programs
A3: OMB Approval No. 0348-0044
A4: Section A - Budget Summary
B5: Grant Program Function or Activity | C5: Catalog of Federal Domestic Assistance Number | D5: Estimated Unobligated Funds | F5: New or Revised Budget
D6: Federal | E6: Non-Federal | F6: Federal | G6: Non-Federal | H6: Total
B7: (a) | C7: (b) | D7: (c ) | E7: (d) | F7: (e) | G7: (f) | H7: (g)
A8: 1. | B8: Budget period 1 | C8: 81.135 | F8: =ROUND($D$26-G8,0) -> 0 | G8: =ROUND('Cost Share'!E25,0) -> 0 | H8: =SUM(D8:G8) -> 0
A9: 2. | B9: Budget period 2 | C9: 81.135 | F9: =ROUND($E$26-G9,0) -> 0 | G9: =ROUND('Cost Share'!F25,0) -> 0 | H9: =SUM(D9:G9) -> 0
A10: 3. | B10: Budget period 3 | C10: 81.135 | F10: =ROUND($F$26-G10,0) -> 0 | G10: =ROUND('Cost Share'!G25,0) -> 0 | H10: =SUM(D10:G10) -> 0
A11: 4.
A12: 5. | B12: Totals | D12: =SUM(D8:D11) -> 0 | E12: =SUM(E8:E11) -> 0 | F12: =SUM(F8:F11) -> 0 | G12: =SUM(G8:G11) -> 0 | H12: =SUM(H8:H11) -> 0
A13: Section B - Budget Categories
A14: 6. | B14: Object Class Categories | D14: Grant Program, Function or Activity | H14: Total (5)
D15: Budget period 1 | E15: Budget period 2 | F15: Budget period 3 | G15: (4)
B16: a. Personnel | D16: ='Instructions and Summary'!B11 -> 0 | E16: ='Instructions and Summary'!C11 -> 0 | F16: ='Instructions and Summary'!D11 -> 0 | H16: =SUM(D16:G16) -> 0
B17: b. Fringe Benefits | D17: ='Instructions and Summary'!B12 -> 0 | E17: ='Instructions and Summary'!C12 -> 0 | F17: ='Instructions and Summary'!D12 -> 0 | H17: 0
B18: c. Travel | D18: ='Instructions and Summary'!B13 -> 0 | E18: ='Instructions and Summary'!C13 -> 0 | F18: ='Instructions and Summary'!D13 -> 0 | H18: 0
B19: d. Equipment | D19: ='Instructions and Summary'!B14 -> 0 | E19: ='Instructions and Summary'!C14 -> 0 | F19: ='Instructions and Summary'!D14 -> 0 | H19: 0
B20: e. Supplies | D20: ='Instructions and Summary'!B15 -> 0 | E20: ='Instructions and Summary'!C15 -> 0 | F20: ='Instructions and Summary'!D15 -> 0 | H20: 0
B21: f. Contractual | D21: ='Instructions and Summary'!B20 -> 0 | E21: ='Instructions and Summary'!C20 -> 0 | F21: ='Instructions and Summary'!D20 -> 0 | H21: 0
B22: g. Construction | D22: ='Instructions and Summary'!B21 -> 0 | E22: ='Instructions and Summary'!C21 -> 0 | F22: ='Instructions and Summary'!D21 -> 0 | H22: 0
B23: h. Other | D23: ='Instructions and Summary'!B22 -> 0 | E23: ='Instructions and Summary'!C22 -> 0 | F23: ='Instructions and Summary'!D22 -> 0 | H23: 0
B24: i. Total Direct Charges (sum of 6a-6h) | D24: =SUM(D16:D23) -> 0 | E24: =SUM(E16:E23) -> 0 | F24: =SUM(F16:F23) -> 0 | H24: 0
B25: j. Indirect Charges | D25: ='Instructions and Summary'!B23 -> 0 | E25: ='Instructions and Summary'!C23 -> 0 | F25: ='Instructions and Summary'!D23 -> 0 | H25: 0
B26: k. Totals (sum of 6i-6j) | D26: =SUM(D24:D25) -> 0 | E26: =SUM(E24:E25) -> 0 | F26: =SUM(F24:F25) -> 0 | H26: =SUM(H24:H25) -> 0
A28: 7. | B28: Program Income | H28: =SUM(D28:G28) -> 0
H30: SF-424A (Rev. 4-92)
A31: Previous Edition Usable | G31: Prescribed by OMB Circular A-102
A32: Authorized for Local Reproduction
A34: Section C - Non-Federal Resources
B35: (a) Grant Program | E35: (b) Applicant | F35: (c ) State | G35: (d) Other Sources | H35: (e) Totals
A36: 8. | B36: Budget period 1 | E36: =ROUND('Cost Share'!K13,0) -> 0 | F36: =ROUND('Cost Share'!K14,0) -> 0 | G36: =ROUND('Cost Share'!K15,0) -> 0 | H36: =SUM(E36:G36) -> 0
A37: 9. | B37: Budget period 2 | E37: =ROUND('Cost Share'!L13,0) -> 0 | F37: =ROUND('Cost Share'!L14,0) -> 0 | G37: =ROUND('Cost Share'!L15,0) -> 0 | H37: =SUM(E37:G37) -> 0
A38: 10. | B38: Budget period 3 | E38: =ROUND('Cost Share'!M13,0) -> 0 | F38: =ROUND('Cost Share'!M14,0) -> 0 | G38: =ROUND('Cost Share'!M15,0) -> 0 | H38: =SUM(E38:G38) -> 0
A39: 11. | H39: =SUM(E39:G39) -> 0
A40: 12. | B40: Total (sum of lines 8 - 11) | E40: =SUM(E36:E39) -> 0 | F40: =SUM(F36:F39) -> 0 | G40: =SUM(G36:G39) -> 0 | H40: =SUM(H36:H39) -> 0
A41: Section D - Forecasted Cash Needs
D42: Total for 1st Year | E42: 1st Quarter | F42: 2nd Quarter | G42: 3rd Quarter | H42: 4th quarter
A43: 13. | B43: Federal | D43: =F8 -> 0 | J43: Please populate with forecasted cash flow for the first year. This total should match total budget for the first year.
A44: 14. | B44: Non-Federal | D44: =G8 -> 0
A45: 15. | B45: Total (sum of lines 13 and 14) | D45: =SUM(D43:D44) -> 0 | E45: =SUM(E43:E44) -> 0 | F45: =SUM(F43:F44) -> 0 | G45: =SUM(G43:G44) -> 0 | H45: =SUM(H43:H44) -> 0 | J45: =IF(SUM(E45:H45)=D45,"Correct","Review") -> Correct
A46: Section E - Budget Estimates of Federal Funds Needed for Balance of the Project
A47: (a) Grant Program | E47: Future Funding Periods (Years)
E48: Budget period 1 | F48: Budget period 2 | G48: Budget period 3
A49: 16. | B49: ARPA-E | E49: =F8 -> 0 | F49: =F9 -> 0 | G49: =F10 -> 0
A50: 17.
A51: 18.
A52: 19.
A53: 20. | B53: Total (sum of lines 16-19) | E53: =SUM(E49:E52) -> 0 | F53: =SUM(F49:F52) -> 0 | G53: =SUM(G49:G52) -> 0 | H53: =SUM(H49:H52) -> 0
A54: Section F - Other Budget Information
A55: 21. Direct Charges | C55: ='Instructions and Summary'!E24-'Instructions and Summary'!E23 -> 0 | E55: 22. Indirect Charges | F55: ='Instructions and Summary'!E23 -> 0
A57: 23. Remarks
H59: SF-424A (Rev. 4-92)
A60: Previous Edition Usable | H60: Prescribed by OMB Circular A-102
C61: Authorized for Local Reproduction

Sheet a. Personnel
A1: Budget Justification for SF 424A Budget | D1: Award Recipient: | F1: ='Instructions and Summary'!B4 -> 0 | L1: ='Instructions and Summary'!G1 -> 8/24/2021 V 6.19
A2: a. Personnel
A3: PLEASE READ!!! List personnel costs solely for employees of the entity completing this workbook. All other personnel costs (of subrecipients or other contractual efforts of the entity preparing this) must be included under tab f., Contractual. This includes all consultants and FFRDCs. When submitting this Budget Justification Workbook include resumes in the same package. Identify positions to be supported. Key personnel should be identified by title. All other personnel should be identified either by title or a group category. State the amounts of time (e.g., hours ) to be expended, the base pay rate or composite base rate, total direct personnel compensation and identify the rate basis (e.g., actual salary, labor distribution report, technical estimate, state civil service rates, etc.). If composite rates are proposed for a particular position or group category, please provide a list of the proposed personnel and rates/hours used to compute the composite rates in the “Additional explanation/comments” box, as applicable. If you are proposing escalation rates for the labor rates, please explain in the “Additional explanation/comments” box at the bottom.
A6: Task # and Title | B6: Position Title | C6: Year 1 | F6: Year 2 | I6: Year 3 | L6: Total Hours | M6: Total Dollars | N6: Rate Basis
C7: Time (Hours) | D7: Pay Rate ($/Hr) | E7: Total Budget Period 1 | F7: Time (Hours) | G7: Pay Rate ($/Hr) | H7: Total Budget Period 2 | I7: Time (Hours) | J7: Pay Rate ($/Hr) | K7: Total Budget Period 3
A8: 1. Generation 2A Receiver Design | C8: =SUM(C9:C11) -> 7960 | E8: =SUM(E9:E11) -> 372400 | F8: =SUM(F9:F11) -> 600 | H8: =SUM(H9:H11) -> 26000 | I8: =SUM(I9:I11) -> 800 | K8: =SUM(K9:K11) -> 34000 | L8: =C8+F8+I8 -> 9360 | M8: =E8+H8+K8 -> 432400 | N8: Actual Salary
A9: EXAMPLE ONLY!!! | B9: Sr. Engineer | C9: 2000 | D9: 85 | E9: =C9*D9 -> 170000 | F9: 200 | G9: 50 | H9: =F9*G9 -> 10000 | I9: 200 | J9: 50 | K9: =I9*J9 -> 10000 | L9: 2400 | M9: 190000 | N9: Actual Salary
B10: Electrical engineers (2) | C10: 4160 | D10: 40 | E10: =C10*D10 -> 166400 | F10: 400 | G10: 40 | H10: =F10*G10 -> 16000 | I10: 600 | J10: 40 | K10: =I10*J10 -> 24000 | L10: 5160 | M10: 206400 | N10: Actual Salary
B11: Technician | C11: 1800 | D11: 20 | E11: =C11*D11 -> 36000 | F11: 0 | G11: 0 | H11: =F11*G11 -> 0 | I11: 0 | J11: 0 | K11: =I11*J11 -> 0 | L11: 1800 | M11: 36000 | N11: Actual Salary
A12: 1. (Task 1 Title) | C12: =SUM(C13:C32) -> 0 | E12: =SUM(E13:E32) -> 0 | F12: =SUM(F13:F32) -> 0 | H12: =SUM(H13:H32) -> 0 | I12: =SUM(I13:I32) -> 0 | K12: =SUM(K13:K32) -> 0 | L12: 0 | M12: 0
E13: =C13*D13 -> 0 | H13: =F13*G13 -> 0 | K13: =I13*J13 -> 0 | L13: 0 | M13: 0
E14: =C14*D14 -> 0 | H14: =F14*G14 -> 0 | K14: =I14*J14 -> 0 | L14: =C14+F14+I14 -> 0 | M14: =E14+H14+K14 -> 0
E15: 0 | H15: 0 | K15: 0 | L15: 0 | M15: 0
E16: 0 | H16: 0 | K16: 0 | L16: 0 | M16: 0
E17: 0 | H17: 0 | K17: 0 | L17: 0 | M17: 0
E18: 0 | H18: 0 | K18: 0 | L18: 0 | M18: 0
E19: 0 | H19: 0 | K19: 0 | L19: 0 | M19: 0
E20: =C20*D20 -> 0 | H20: =F20*G20 -> 0 | K20: =I20*J20 -> 0 | L20: =C20+F20+I20 -> 0 | M20: =E20+H20+K20 -> 0
E21: 0 | H21: 0 | K21: 0 | L21: 0 | M21: 0
E22: 0 | H22: 0 | K22: 0 | L22: 0 | M22: 0
E23: 0 | H23: 0 | K23: 0 | L23: 0 | M23: 0
E24: 0 | H24: 0 | K24: 0 | L24: 0 | M24: 0
E25: 0 | H25: 0 | K25: 0 | L25: 0 | M25: 0
E26: 0 | H26: 0 | K26: 0 | L26: 0 | M26: 0
E27: 0 | H27: 0 | K27: 0 | L27: 0 | M27: 0
E28: 0 | H28: 0 | K28: 0 | L28: 0 | M28: 0
E29: 0 | H29: 0 | K29: 0 | L29: 0 | M29: 0
E30: 0 | H30: 0 | K30: 0 | L30: 0 | M30: 0
E31: 0 | H31: 0 | K31: 0 | L31: 0 | M31: 0
E32: 0 | H32: 0 | K32: 0 | L32: 0 | M32: 0
A33: 2. (Task 2 Title) | C33: =SUM(C34:C53) -> 0 | E33: =SUM(E34:E53) -> 0 | F33: =SUM(F34:F53) -> 0 | H33: =SUM(H34:H53) -> 0 | I33: =SUM(I34:I53) -> 0 | K33: =SUM(K34:K53) -> 0 | L33: =C33+F33+I33 -> 0 | M33: =E33+H33+K33 -> 0
E34: 0 | H34: 0 | K34: 0 | L34: =C34+F34+I34 -> 0 | M34: =E34+H34+K34 -> 0
E35: 0 | H35: 0 | K35: 0 | L35: =C35+F35+I35 -> 0 | M35: =E35+H35+K35 -> 0
E36: 0 | H36: 0 | K36: 0 | L36: 0 | M36: 0
E37: 0 | H37: 0 | K37: 0 | L37: 0 | M37: 0
E38: 0 | H38: 0 | K38: 0 | L38: 0 | M38: 0
E39: 0 | H39: 0 | K39: 0 | L39: 0 | M39: 0
E40: 0 | H40: 0 | K40: 0 | L40: 0 | M40: 0
E41: 0 | H41: 0 | K41: 0 | L41: 0 | M41: 0
E42: 0 | H42: 0 | K42: 0 | L42: 0 | M42: 0
E43: 0 | H43: 0 | K43: 0 | L43: 0 | M43: 0
E44: 0 | H44: 0 | K44: 0 | L44: 0 | M44: 0
E45: 0 | H45: 0 | K45: 0 | L45: 0 | M45: 0
E46: 0 | H46: 0 | K46: 0 | L46: 0 | M46: 0
E47: 0 | H47: 0 | K47: 0 | L47: 0 | M47: 0
E48: 0 | H48: 0 | K48: 0 | L48: 0 | M48: 0
E49: 0 | H49: 0 | K49: 0 | L49: 0 | M49: 0
E50: 0 | H50: 0 | K50: 0 | L50: 0 | M50: 0
E51: 0 | H51: 0 | K51: 0 | L51: 0 | M51: 0
E52: 0 | H52: 0 | K52: 0 | L52: 0 | M52: 0
E53: 0 | H53: 0 | K53: 0 | L53: 0 | M53: 0
A54: 3. (Task 3 Title) | C54: =SUM(C55:C74) -> 0 | E54: =SUM(E55:E74) -> 0 | F54: =SUM(F55:F74) -> 0 | H54: =SUM(H55:H74) -> 0 | I54: =SUM(I55:I74) -> 0 | K54: =SUM(K55:K74) -> 0 | L54: =C54+F54+I54 -> 0 | M54: =E54+H54+K54 -> 0
E55: 0 | H55: 0 | K55: 0 | L55: =C55+F55+I55 -> 0 | M55: =E55+H55+K55 -> 0
E56: 0 | H56: 0 | K56: 0 | L56: =C56+F56+I56 -> 0 | M56: =E56+H56+K56 -> 0
E57: 0 | H57: 0 | K57: 0 | L57: 0 | M57: 0
E58: 0 | H58: 0 | K58: 0 | L58: 0 | M58: 0
E59: 0 | H59: 0 | K59: 0 | L59: 0 | M59: 0
E60: 0 | H60: 0 | K60: 0 | L60: 0 | M60: 0
E61: 0 | H61: 0 | K61: 0 | L61: 0 | M61: 0
E62: 0 | H62: 0 | K62: 0 | L62: 0 | M62: 0
E63: 0 | H63: 0 | K63: 0 | L63: 0 | M63: 0
E64: 0 | H64: 0 | K64: 0 | L64: 0 | M64: 0
E65: 0 | H65: 0 | K65: 0 | L65: 0 | M65: 0
E66: 0 | H66: 0 | K66: 0 | L66: 0 | M66: 0
E67: 0 | H67: 0 | K67: 0 | L67: 0 | M67: 0
E68: 0 | H68: 0 | K68: 0 | L68: 0 | M68: 0
E69: 0 | H69: 0 | K69: 0 | L69: 0 | M69: 0
E70: 0 | H70: 0 | K70: 0 | L70: 0 | M70: 0
E71: 0 | H71: 0 | K71: 0 | L71: 0 | M71: 0
E72: 0 | H72: 0 | K72: 0 | L72: 0 | M72: 0
E73: 0 | H73: 0 | K73: 0 | L73: 0 | M73: 0
E74: 0 | H74: 0 | K74: 0 | L74: 0 | M74: 0
A75: 4. (Task 4 Title) | C75: =SUM(C76:C95) -> 0 | E75: =SUM(E76:E95) -> 0 | F75: =SUM(F76:F95) -> 0 | H75: =SUM(H76:H95) -> 0 | I75: =SUM(I76:I95) -> 0 | K75: =SUM(K76:K95) -> 0 | L75: =C75+F75+I75 -> 0 | M75: =E75+H75+K75 -> 0
E76: =C76*D76 -> 0 | H76: =F76*G76 -> 0 | K76: =I76*J76 -> 0 | L76: =C76+F76+I76 -> 0 | M76: =E76+H76+K76 -> 0
E77: =C77*D77 -> 0 | H77: =F77*G77 -> 0 | K77: =I77*J77 -> 0 | L77: =C77+F77+I77 -> 0 | M77: =E77+H77+K77 -> 0
E78: 0 | H78: 0 | K78: 0 | L78: 0 | M78: 0
E79: 0 | H79: 0 | K79: 0 | L79: 0 | M79: 0
E80: 0 | H80: 0 | K80: 0 | L80: 0 | M80: 0
E81: 0 | H81: 0 | K81: 0 | L81: 0 | M81: 0
E82: 0 | H82: 0 | K82: 0 | L82: 0 | M82: 0
E83: 0 | H83: 0 | K83: 0 | L83: 0 | M83: 0
E84: 0 | H84: 0 | K84: 0 | L84: 0 | M84: 0
E85: 0 | H85: 0 | K85: 0 | L85: 0 | M85: 0
E86: 0 | H86: 0 | K86: 0 | L86: 0 | M86: 0
E87: 0 | H87: 0 | K87: 0 | L87: 0 | M87: 0
E88: 0 | H88: 0 | K88: 0 | L88: 0 | M88: 0
E89: 0 | H89: 0 | K89: 0 | L89: 0 | M89: 0
E90: 0 | H90: 0 | K90: 0 | L90: 0 | M90: 0
E91: 0 | H91: 0 | K91: 0 | L91: 0 | M91: 0
E92: 0 | H92: 0 | K92: 0 | L92: 0 | M92: 0
E93: 0 | H93: 0 | K93: 0 | L93: 0 | M93: 0
E94: 0 | H94: 0 | K94: 0 | L94: 0 | M94: 0
E95: 0 | H95: 0 | K95: 0 | L95: 0 | M95: 0
A96: 5. (Task 5 Title) | C96: =SUM(C97:C116) -> 0 | E96: =SUM(E97:E116) -> 0 | F96: =SUM(F97:F116) -> 0 | H96: =SUM(H97:H116) -> 0 | I96: =SUM(I97:I116) -> 0 | K96: =SUM(K97:K116) -> 0 | L96: =C96+F96+I96 -> 0 | M96: =E96+H96+K96 -> 0
E97: =C97*D97 -> 0 | H97: =F97*G97 -> 0 | K97: =I97*J97 -> 0 | L97: =C97+F97+I97 -> 0 | M97: =E97+H97+K97 -> 0
E98: =C98*D98 -> 0 | H98: =F98*G98 -> 0 | K98: =I98*J98 -> 0 | L98: =C98+F98+I98 -> 0 | M98: =E98+H98+K98 -> 0
E99: 0 | H99: 0 | K99: 0 | L99: 0 | M99: 0
E100: 0 | H100: 0 | K100: 0 | L100: 0 | M100: 0
E101: 0 | H101: 0 | K101: 0 | L101: 0 | M101: 0
E102: 0 | H102: 0 | K102: 0 | L102: 0 | M102: 0
E103: 0 | H103: 0 | K103: 0 | L103: 0 | M103: 0
E104: 0 | H104: 0 | K104: 0 | L104: 0 | M104: 0
E105: 0 | H105: 0 | K105: 0 | L105: 0 | M105: 0
E106: 0 | H106: 0 | K106: 0 | L106: 0 | M106: 0
E107: 0 | H107: 0 | K107: 0 | L107: 0 | M107: 0
E108: 0 | H108: 0 | K108: 0 | L108: 0 | M108: 0
E109: 0 | H109: 0 | K109: 0 | L109: 0 | M109: 0
E110: 0 | H110: 0 | K110: 0 | L110: 0 | M110: 0
E111: 0 | H111: 0 | K111: 0 | L111: 0 | M111: 0
E112: 0 | H112: 0 | K112: 0 | L112: 0 | M112: 0
E113: 0 | H113: 0 | K113: 0 | L113: 0 | M113: 0
E114: 0 | H114: 0 | K114: 0 | L114: 0 | M114: 0
E115: 0 | H115: 0 | K115: 0 | L115: 0 | M115: 0
E116: 0 | H116: 0 | K116: 0 | L116: 0 | M116: 0
A117: 6. (Task 6 Title) | C117: =SUM(C118:C137) -> 0 | E117: =SUM(E118:E137) -> 0 | F117: =SUM(F118:F137) -> 0 | H117: =SUM(H118:H137) -> 0 | I117: =SUM(I118:I137) -> 0 | K117: =SUM(K118:K137) -> 0 | L117: =C117+F117+I117 -> 0 | M117: =E117+H117+K117 -> 0
E118: =C118*D118 -> 0 | H118: =F118*G118 -> 0 | K118: =I118*J118 -> 0 | L118: =C118+F118+I118 -> 0 | M118: =E118+H118+K118 -> 0
E119: =C119*D119 -> 0 | H119: =F119*G119 -> 0 | K119: =I119*J119 -> 0 | L119: =C119+F119+I119 -> 0 | M119: =E119+H119+K119 -> 0
E120: 0 | H120: 0 | K120: 0 | L120: 0 | M120: 0
E121: 0 | H121: 0 | K121: 0 | L121: 0 | M121: 0
E122: 0 | H122: 0 | K122: 0 | L122: 0 | M122: 0
E123: 0 | H123: 0 | K123: 0 | L123: 0 | M123: 0
E124: 0 | H124: 0 | K124: 0 | L124: 0 | M124: 0
E125: 0 | H125: 0 | K125: 0 | L125: 0 | M125: 0
E126: 0 | H126: 0 | K126: 0 | L126: 0 | M126: 0
E127: 0 | H127: 0 | K127: 0 | L127: 0 | M127: 0
E128: 0 | H128: 0 | K128: 0 | L128: 0 | M128: 0
E129: 0 | H129: 0 | K129: 0 | L129: 0 | M129: 0
E130: 0 | H130: 0 | K130: 0 | L130: 0 | M130: 0
E131: 0 | H131: 0 | K131: 0 | L131: 0 | M131: 0
E132: 0 | H132: 0 | K132: 0 | L132: 0 | M132: 0
E133: 0 | H133: 0 | K133: 0 | L133: 0 | M133: 0
E134: 0 | H134: 0 | K134: 0 | L134: 0 | M134: 0
E135: 0 | H135: 0 | K135: 0 | L135: 0 | M135: 0
E136: 0 | H136: 0 | K136: 0 | L136: 0 | M136: 0
E137: 0 | H137: 0 | K137: 0 | L137: 0 | M137: 0
A138: 7. (Task 7 Title) | C138: =SUM(C139:C158) -> 0 | E138: =SUM(E139:E158) -> 0 | F138: =SUM(F139:F158) -> 0 | H138: =SUM(H139:H158) -> 0 | I138: =SUM(I139:I158) -> 0 | K138: =SUM(K139:K158) -> 0 | L138: =C138+F138+I138 -> 0 | M138: =E138+H138+K138 -> 0
E139: =C139*D139 -> 0 | H139: =F139*G139 -> 0 | K139: =I139*J139 -> 0 | L139: =C139+F139+I139 -> 0 | M139: =E139+H139+K139 -> 0
E140: =C140*D140 -> 0 | H140: =F140*G140 -> 0 | K140: =I140*J140 -> 0 | L140: =C140+F140+I140 -> 0 | M140: =E140+H140+K140 -> 0
E141: 0 | H141: 0 | K141: 0 | L141: 0 | M141: 0
E142: 0 | H142: 0 | K142: 0 | L142: 0 | M142: 0
E143: 0 | H143: 0 | K143: 0 | L143: 0 | M143: 0
E144: 0 | H144: 0 | K144: 0 | L144: 0 | M144: 0
E145: 0 | H145: 0 | K145: 0 | L145: 0 | M145: 0
E146: 0 | H146: 0 | K146: 0 | L146: 0 | M146: 0
E147: 0 | H147: 0 | K147: 0 | L147: 0 | M147: 0
E148: 0 | H148: 0 | K148: 0 | L148: 0 | M148: 0
E149: 0 | H149: 0 | K149: 0 | L149: 0 | M149: 0
E150: 0 | H150: 0 | K150: 0 | L150: 0 | M150: 0
E151: 0 | H151: 0 | K151: 0 | L151: 0 | M151: 0
E152: 0 | H152: 0 | K152: 0 | L152: 0 | M152: 0
E153: 0 | H153: 0 | K153: 0 | L153: 0 | M153: 0
E154: 0 | H154: 0 | K154: 0 | L154: 0 | M154: 0
E155: 0 | H155: 0 | K155: 0 | L155: 0 | M155: 0
E156: 0 | H156: 0 | K156: 0 | L156: 0 | M156: 0
E157: 0 | H157: 0 | K157: 0 | L157: 0 | M157: 0
E158: 0 | H158: 0 | K158: 0 | L158: 0 | M158: 0
A159: 8. (Task 8 Title) | C159: =SUM(C160:C179) -> 0 | E159: =SUM(E160:E179) -> 0 | F159: =SUM(F160:F179) -> 0 | H159: =SUM(H160:H179) -> 0 | I159: =SUM(I160:I179) -> 0 | K159: =SUM(K160:K179) -> 0 | L159: =C159+F159+I159 -> 0 | M159: =E159+H159+K159 -> 0
E160: =C160*D160 -> 0 | H160: =F160*G160 -> 0 | K160: =I160*J160 -> 0 | L160: =C160+F160+I160 -> 0 | M160: =E160+H160+K160 -> 0
E161: =C161*D161 -> 0 | H161: =F161*G161 -> 0 | K161: =I161*J161 -> 0 | L161: =C161+F161+I161 -> 0 | M161: =E161+H161+K161 -> 0
E162: 0 | H162: 0 | K162: 0 | L162: 0 | M162: 0
E163: 0 | H163: 0 | K163: 0 | L163: 0 | M163: 0
E164: 0 | H164: 0 | K164: 0 | L164: 0 | M164: 0
E165: 0 | H165: 0 | K165: 0 | L165: 0 | M165: 0
E166: 0 | H166: 0 | K166: 0 | L166: 0 | M166: 0
E167: =C167*D167 -> 0 | H167: =F167*G167 -> 0 | K167: =I167*J167 -> 0 | L167: =C167+F167+I167 -> 0 | M167: =E167+H167+K167 -> 0
E168: 0 | H168: 0 | K168: 0 | L168: 0 | M168: 0
E169: 0 | H169: 0 | K169: 0 | L169: 0 | M169: 0
E170: 0 | H170: 0 | K170: 0 | L170: 0 | M170: 0
E171: 0 | H171: 0 | K171: 0 | L171: 0 | M171: 0
E172: 0 | H172: 0 | K172: 0 | L172: 0 | M172: 0
E173: 0 | H173: 0 | K173: 0 | L173: 0 | M173: 0
E174: 0 | H174: 0 | K174: 0 | L174: 0 | M174: 0
E175: 0 | H175: 0 | K175: 0 | L175: 0 | M175: 0
E176: 0 | H176: 0 | K176: 0 | L176: 0 | M176: 0
E177: 0 | H177: 0 | K177: 0 | L177: 0 | M177: 0
E178: 0 | H178: 0 | K178: 0 | L178: 0 | M178: 0
E179: 0 | H179: 0 | K179: 0 | L179: 0 | M179: 0
A180: Total Personnel Costs | C180: =C12+C33+C54+C75+C96+C117+C138+C159 -> 0 | E180: =E12+E33+E54+E75+E96+E117+E138+E159 -> 0 | F180: =F12+F33+F54+F75+F96+F117+F138+F159 -> 0 | H180: =H12+H33+H54+H75+H96+H117+H138+H159 -> 0 | I180: =I12+I33+I54+I75+I96+I117+I138+I159 -> 0 | K180: =K12+K33+K54+K75+K96+K117+K138+K159 -> 0 | L180: =I180+F180+C180 -> 0 | M180: =K180+H180+E180 -> 0
A182: Additional Explanations/Comments (as necessary):

Sheet b. Fringe Benefits
A1: Budget Justification for SF 424A Budget | E1: Award Recipient: | F1: ='Instructions and Summary'!B4 -> 0 | I1: ='Instructions and Summary'!G1 -> 8/24/2021 V 6.19
A2: b. Fringe Benefits
A3: Rate Type: | D3: Year 1 | E3: Year 2 | F3: Year 3 | G3: Total
D4: 0 | E4: 0 | F4: 0
D5: 0 | E5: 0 | F5: 0
D6: 0 | E6: 0 | F6: 0
D7: 0 | E7: 0 | F7: 0
D8: 0 | E8: 0 | F8: 0
D9: 0 | E9: 0 | F9: 0
A10: Total fringe requested: | D10: 0 | E10: 0 | F10: 0 | G10: =SUM(D10:F10) -> 0
A11: =IF(A15=A17,"One box should be checked in the fringe rate agreement section.","") -> One box should be checked in the fringe rate agreement section.
A13: Applicants are required to indicate if they have a Federally approved fringe benefit rate agreement.
A14: If reimbursement for fringe benefits is requested, a Federally approved fringe benefit rate agreement, or a fringe benefit rate proposal is required in accordance with the instructions below. The fringe benefit rate proposal must be accepted by ARPA-E for estimating purposes. Calculate the fringe rate/dollars and enter this information above.
B15: A fringe benefit rate has been negotiated with, or approved by, a Federal government agency. A copy of the latest rate agreement is included with the Full Application (*see information below).
B17: A fringe benefit rate has not been negotiated with, or approved by, a Federal agency (*see information below).
B18: If an Applicant is selected for award negotiations and does not have a Federally approved fringe benefit rate agreement, then the Applicant is required to submit an Indirect Rate Proposal to the ARPA-E Contracting Officer. A template for Indirect Rate Proposals is available at https://arpa-e.energy.gov/technologies/project-guidance/pre-award-guidance/required-forms-and-templates. The Applicant must provide this information to the ARPA-E Contracting Officer at ARPA-E-CO@hq.doe.gov within 2 days after the receiving the award notification. In the subject line of the email, please state “Rate Proposal” and include the Applicant’s name, FOA name and number, and application control number. | J18: X
A20: *IMPORTANT: In the space provided below (or as an attachment) provide a complete explanation and the full calculations used to derive the total fringe costs. If the total fringe costs are a cumulative amount of more than one calculation or rate application, the explanation and calculations should identify all rates used, along with the base they were applied to (and how the base was derived), and a total for each (along with grand total). Do not average the rates and apply them to get one fringe cost percentage. NOTE: You must apply the fringe benefit rate to both the Federal Share and Recipient Cost Share.
A24: Explanations/Comments/Calculations/Formula:

Sheet c. Travel
A1: Budget Justification for SF 424A Budget | C1: Award Recipient: | E1: ='Instructions and Summary'!B4 -> 0 | H1: ='Instructions and Summary'!G1 -> 8/24/2021 V 6.19
A2: c. Travel
A3: PLEASE READ!!! Provide travel detail as requested below, identifying total Foreign and Domestic Travel as separate items. "Purpose of travel" are items such as professional conference, DOE sponsored meeting, project management meeting, etc. The Basis for Estimating Costs are items such as past trips, current quotations, Federal Travel Regulations, etc. Note: Travel to the annual ARPA-E Energy Innovation Summit must be proposed under the “Other Direct Cost” tab for each Budget Year. Non-travel related expenses for the ARPA-E Annual Energy Summit must be approved in advance by the ARPA-E Contracting Officer. Applicants must submit requests to the ARPA-E Contracting Officer at ARPA-E-CO@hq.doe.gov. at least 30 days in advance of the ARPA-E Annual Summit. In the subject line of the email, please state “Request for Non-Travel Expenses for ARPA-E Energy Innovation Summit” and include the Applicant’s name, FOA name and number, and application control number. All listed travel must be necessary for the performance of the objectives in the Statement of Project Objectives and accompanying Technical Milestones and Deliverables. The Prime Recipient must budget for one visit per year with the ARPA-E Program Director in Washington, DC.
A5: Purpose of travel | B5: No. of Travelers | C5: Depart From | D5: Destination | E5: No. of Days | F5: Cost per Traveler | G5: Cost per Trip | H5: Basis for Estimating Costs
A6: EXAMPLE ONLY!!! Visit to PV cell mfr. to set up vendor agreement | B6: 2 | E6: 2 | F6: 650 | G6: =F6*B6 -> 1300 | H6: Internet prices
A7: Year 1
A8: Domestic Travel
G9: =F9*B9 -> 0
G10: 0
G11: 0
G12: 0
G13: 0
G14: 0
G15: 0
G16: 0
G17: 0
G18: 0
G19: 0
G20: 0
G21: 0
G22: 0
G23: 0
G24: 0
G25: 0
G26: 0
A27: Domestic Travel Subtotal | G27: =SUM(G9:G26) -> 0
A28: International Travel
G29: =F29*B29 -> 0
G30: =F30*B30 -> 0
G31: 0
G32: 0
G33: 0
G34: 0
G35: 0
G36: 0
G37: 0
G38: 0
G39: 0
G40: 0
G41: 0
G42: 0
G43: =F43*B43 -> 0
G44: =F44*B44 -> 0
G45: =F45*B45 -> 0
G46: =F46*B46 -> 0
A47: International Travel Subtotal | G47: =SUM(G29:G46) -> 0
A48: Year 1 Total | G48: =G27+G47 -> 0
A50: Year 2
A51: Domestic Travel
G52: =F52*B52 -> 0
G53: 0
G54: 0
G55: 0
G56: 0
G57: 0
G58: 0
G59: 0
G60: 0
G61: 0
G62: 0
G63: 0
G64: 0
G65: 0
G66: 0
G67: 0
G68: 0
G69: 0
A70: Domestic Travel Subtotal | G70: =SUM(G52:G69) -> 0
A71: International Travel
G72: =F72*B72 -> 0
G73: =F73*B73 -> 0
G74: 0
G75: 0
G76: 0
G77: 0
G78: 0
G79: 0
G80: 0
G81: 0
G82: 0
G83: 0
G84: 0
G85: 0
G86: =F86*B86 -> 0
G87: 0
G88: =F88*B88 -> 0
G89: =F89*B89 -> 0
A90: International Travel Subtotal | G90: =SUM(G72:G89) -> 0
A91: Year 2 Total | G91: =G70+G90 -> 0
A93: Year 3
A94: Domestic Travel
G95: =F95*B95 -> 0
G96: 0
G97: 0
G98: 0
G99: 0
G100: 0
G101: 0
G102: 0
G103: 0
G104: 0
G105: 0
G106: 0
G107: 0
G108: 0
G109: 0
G110: 0
G111: 0
G112: 0
A113: Domestic Travel Subtotal | G113: =SUM(G95:G112) -> 0
A114: International Travel
G115: =F115*B115 -> 0
G116: =F116*B116 -> 0
G117: 0
G118: 0
G119: 0
G120: 0
G121: 0
G122: 0
G123: 0
G124: 0
G125: 0
G126: 0
G127: 0
G128: 0
G129: =F129*B129 -> 0
G130: =F130*B130 -> 0
G131: =F131*B131 -> 0
G132: =F132*B132 -> 0
A133: International Travel Subtotal | G133: =SUM(G115:G132) -> 0
A134: Year 3 Total | G134: =G113+G133 -> 0
A136: PROJECT TOTAL | G136: =G48+G91+G134 -> 0
A138: Additional Explanations/Comments (as necessary):

Sheet d. Equipment
A1: Budget Justification for SF 424A Budget | C1: Award Recipient: | D1: ='Instructions and Summary'!B4 -> 0 | F1: ='Instructions and Summary'!G1 -> 8/24/2021 V 6.19
A2: d. Equipment
A3: PLEASE READ!!! "Equipment" is generally defined as an item with an acquisition cost greater than $5,000 and a useful life expectancy of more than one year. Further definitions can be found at 2 C.F.R. 200. List all proposed equipment below, providing a basis of cost such as vendor quotes, catalog prices, prior invoices, etc., and briefly justify its need as it applies to the Statement of Project Objectives and accompanying Technical Milestones and Deliverables. If it is existing equipment, and the value of its contribution to the project budget is being shown as cost share, provide logical support for the estimated value shown. If it is new equipment which will retain a useful life upon completion of the project, provide logical support for the estimated value shown. For equipment with a unit price of $50,000.00 or greater, also include a copy of the associated vendor quote or catalog price list.
A5: Equipment Item | B5: Qty | C5: Unit Cost | D5: Total Cost | E5: Basis of Cost | F5: Justification of Need
A6: EXAMPLE ONLY!!! Thermal shock chamber | B6: 2 | C6: 20000 | D6: =B6*C6 -> 40000 | E6: Vendor Quote | F6: Reliability testing of PV modules- Task 4.3
A7: Year 1
D8: =B8*C8 -> 0
D9: 0
D10: 0
D11: 0
D12: 0
D13: 0
D14: 0
D15: 0
D16: 0
D17: 0
D18: 0
D19: 0
D20: 0
D21: 0
D22: 0
D23: 0
D24: 0
D25: 0
D26: 0
D27: 0
D28: 0
D29: 0
D30: 0
D31: =B31*C31 -> 0
D32: 0
D33: 0
D34: 0
D35: 0
D36: 0
D37: 0
D38: 0
D39: 0
D40: 0
D41: 0
D42: 0
D43: 0
D44: 0
D45: 0
D46: 0
D47: 0
D48: 0
D49: 0
D50: 0
D51: 0
D52: 0
D53: 0
D54: 0
D55: 0
A56: Year 1 Total | D56: =SUM(D8:D55) -> 0
A58: Year 2
D59: =B59*C59 -> 0
D60: =B60*C60 -> 0
D61: 0
D62: 0
D63: 0
D64: 0
D65: 0
D66: 0
D67: 0
D68: 0
D69: 0
D70: 0
D71: 0
D72: 0
D73: 0
D74: 0
D75: 0
D76: 0
D77: 0
D78: 0
D79: 0
D80: 0
D81: 0
D82: 0
D83: 0
D84: 0
D85: 0
D86: 0
D87: 0
D88: 0
D89: 0
D90: 0
D91: 0
D92: 0
D93: 0
D94: 0
D95: 0
D96: 0
D97: 0
D98: 0
D99: 0
D100: 0
D101: 0
D102: 0
D103: 0
D104: 0
D105: 0
D106: 0
A107: Year 2 Total | D107: =SUM(D59:D106) -> 0
A109: Year 3
D110: =B110*C110 -> 0
D111: =B111*C111 -> 0
D112: 0
D113: 0
D114: 0
D115: 0
D116: 0
D117: 0
D118: 0
D119: 0
D120: 0
D121: 0
D122: 0
D123: 0
D124: 0
D125: 0
D126: 0
D127: 0
D128: 0
D129: 0
D130: 0
D131: 0
D132: 0
D133: 0
D134: 0
D135: 0
D136: 0
D137: 0
D138: 0
D139: 0
D140: 0
D141: 0
D142: 0
D143: 0
D144: 0
D145: 0
D146: 0
D147: 0
D148: 0
D149: 0
D150: 0
D151: 0
D152: 0
D153: =B153*C153 -> 0
D154: 0
D155: 0
D156: 0
D157: 0
A158: Year 3 Total | D158: =SUM(D110:D157) -> 0
A160: PROJECT TOTAL | D160: =D56+D107+D158 -> 0
A162: Additional Explanations/Comments (as necessary):

Sheet e. Supplies
A1: Budget Justification for SF 424A Budget | C1: Award Recipient: | D1: ='Instructions and Summary'!B4 -> 0 | F1: ='Instructions and Summary'!G1 -> 8/24/2021 V 6.19
A2: e. Supplies
A3: PLEASE READ!!! "Supplies" are generally defined as an item with an acquisition cost of $5,000 or less and a useful life expectancy of less than one year. Supplies are generally consumed during the project performance. Further definitions can be found at 2 C.F.R. 200. List all proposed supplies below, providing a bases of cost such as vendor quotes, catalog prices, prior invoices, etc., and briefly justifying the need for the Supplies as they apply to the Statement of Project Objectives and accompanying Technical Milestones and Deliverables. Note that Supply items must be direct costs to the project at this budget category, and not duplicative of supply costs included in the indirect pool that is the basis of the indirect rate applied for this project.
A5: General Category of Supplies | B5: Qty | C5: Unit Cost | D5: Total Cost | E5: Basis of Cost | F5: Justification of Need
A6: EXAMPLE ONLY!!! Wireless DAS components | B6: 10 | C6: 360 | D6: 3600 | E6: Catalog price | F6: For Alpha prototype - Task 2.4
A7: Year 1
D8: =B8*C8 -> 0
D9: =B9*C9 -> 0
D10: 0
D11: =B11*C11 -> 0
D12: 0
D13: 0
D14: 0
D15: 0
D16: 0
D17: 0
D18: 0
D19: 0
D20: 0
D21: 0
D22: 0
D23: 0
D24: 0
D25: 0
D26: 0
D27: 0
D28: 0
D29: 0
D30: 0
D31: 0
D32: 0
D33: 0
D34: 0
D35: 0
D36: 0
D37: 0
D38: 0
D39: 0
D40: 0
D41: 0
D42: 0
D43: 0
D44: 0
D45: 0
D46: 0
D47: 0
D48: 0
D49: 0
D50: 0
D51: 0
D52: 0
D53: 0
D54: 0
D55: 0
D56: 0
D57: 0
D58: 0
D59: 0
D60: 0
D61: 0
D62: 0
D63: 0
D64: 0
D65: 0
D66: 0
D67: 0
D68: 0
D69: 0
D70: 0
D71: 0
D72: 0
D73: 0
D74: 0
D75: 0
D76: 0
D77: 0
D78: 0
D79: 0
A80: Year 1 Total | D80: =SUM(D8:D79) -> 0
A82: Year 2
D83: =B83*C83 -> 0
D84: =B84*C84 -> 0
D85: 0
D86: 0
D87: 0
D88: 0
D89: 0
D90: 0
D91: 0
D92: 0
D93: 0
D94: 0
D95: 0
D96: 0
D97: 0
D98: 0
D99: 0
D100: 0
D101: 0
D102: 0
D103: 0
D104: 0
D105: 0
D106: 0
D107: 0
D108: 0
D109: 0
D110: 0
D111: 0
D112: 0
D113: 0
D114: 0
D115: 0
D116: 0
D117: 0
D118: 0
D119: 0
D120: 0
D121: 0
D122: 0
D123: 0
D124: 0
D125: 0
D126: 0
D127: 0
D128: 0
D129: 0
D130: 0
D131: 0
D132: 0
D133: 0
D134: 0
D135: 0
D136: 0
D137: 0
D138: 0
D139: 0
D140: 0
D141: 0
D142: =B142*C142 -> 0
D143: 0
D144: 0
D145: 0
D146: 0
D147: 0
D148: 0
D149: 0
D150: 0
D151: =B151*C151 -> 0
D152: 0
A153: Year 2 Total | D153: =SUM(D83:D152) -> 0
A155: Year 3
D156: =B156*C156 -> 0
D157: =B157*C157 -> 0
D158: =B158*C158 -> 0
D159: 0
D160: =B160*C160 -> 0
D161: =B161*C161 -> 0
D162: 0
D163: 0
D164: 0
D165: 0
D166: 0
D167: 0
D168: 0
D169: 0
D170: 0
D171: 0
D172: 0
D173: 0
D174: 0
D175: 0
D176: 0
D177: 0
D178: 0
D179: 0
D180: 0
D181: 0
D182: 0
D183: 0
D184: 0
D185: 0
D186: 0
D187: 0
D188: 0
D189: 0
D190: 0
D191: 0
D192: 0
D193: 0
D194: 0
D195: 0
D196: 0
D197: 0
D198: 0
D199: 0
D200: 0
D201: 0
D202: 0
D203: 0
... 25 more rows

Sheet f. Contractual
A1: Budget Justification for SF 424A Budget Award Recipient: | C1: ='Instructions and Summary'!B4 -> 0 | F1: ='Instructions and Summary'!G1 -> 8/24/2021 V 6.19
A2: f. Contractual
A3: PLEASE READ!!! The entity completing this form must provide all costs related to subrecipients, vendors, contractors, consultants and FFRDC partners in the applicable boxes below. Subrecipients (partners, subawardees): Each Subrecipient incurring greater than or equal to 10% of the Total Project Costs must complete a separate Budget Justification Workbook to justify its proposed budget. The Subrecipients’ SF-424A and Budget Justification Workbooks may be completed by either the Subrecipients themselves or by the preparer of this workbook. The budget totals on the Subrecipients' workbooks must match the Subrecipient entries described below. Subrecipients incurring less than 10% of the Total Project Costs are not required to complete a separate Budget Justification workbook. However, such Subrecipients are required to provide supporting documentation to justify their proposed budgets. At a minimum, the supporting documentation must include a sufficient basis for the estimated costs for ARPA-E evaluation. Please also refer to instructions in tabs b. Fringe Benefits and i. Indirect Costs.
A4: Vendors (includes contractors and consultants): List all vendors, contractors and consultants supplying commercial supplies or services used to support the project. The support to justify vendor costs (in any amount) should provide the purpose for the products or services and a basis of the estimated costs that is considered sufficient for ARPA-E evaluation. Federal Research and Development Centers (FFRDCs): Each FFRDC incurring greater than or equal to 10% of the Total Project Costs must complete a separate SF-424A and separate Budget Justification worksheet to justify its proposed budget. The FFRDC workbooks may be completed by either the Subrecipients themselves or by the preparer of this workbook. The budget totals on the Subrecipient's SF-424A and Budget Justification Workbook must match the Subrecipient entries described below. DOE/NNSA FFRDCs are also required to submit a Field Work Proposal in accordance with the instructions in DOE O 412.1, “Work Authorization System” (http://management.energy.gov/business_doe/business_forms.htm) in the Technical Volume of the Full Application. FFRDCs incurring less than 10% of the Total Project Cost are not required to complete a separate SF-424A and Budget Justification Workbook. However, FFRDCs are required to provide supporting documentation to justify their proposed budgets. At a minimum, the supporting documentation must include a sufficient basis for the estimated costs for ARPA-E evaluation. All DOE/NNSA FFRDCs are also required to submit a Field Work Proposal. Please also refer to instructions in tabs b. Fringe Benefits and i. Indirect Costs.
A6: Sub-Recipient Name/Organization | B6: Purpose/Tasks in Statement of Project Objectives (SOPO) | C6: Year 1 Costs | D6: Year 2 Costs | E6: Year 3 Costs | F6: Project Total
A7: EXAMPLE ONLY!!! XYZ Corp. | B7: Partner to develop optimal fresnel lens for Gen 2 product - Task 2.4 | C7: 48000 | D7: 32000 | E7: 16000 | F7: =SUM(C7:E7) -> 96000 | G7: =IF(F7>100000,"Separate budget forms required for this sub-recipient!", " ") -> 
F8: =SUM(C8:E8) -> 0 | G8: =IF(F8>=100000,"Separate budget forms required for this sub-recipient!", " ") -> 
F9: 0
F10: 0
F11: 0
F12: 0
F13: 0
F14: 0 | G14: =IF(F14>100000,"Separate budget forms required for this sub-recipient!", " ") -> 
F15: 0
F16: 0
F17: 0
F18: 0
F19: 0
F20: 0
A21: Total Sub-Recipient | C21: =SUM(C8:C20) -> 0 | D21: =SUM(D8:D20) -> 0 | E21: =SUM(E8:E19) -> 0 | F21: =SUM(F8:F20) -> 0
A23: Vendor Name/Organization | B23: Product or Service, Purpose/Need and Basis of Cost (Provide additional support at bottom of page as needed) | C23: Year 1 Costs | D23: Year 2 Costs | E23: Year 3 Costs | F23: Project Total
A24: EXAMPLE ONLY!!! ABC Corp. | B24: Vendor for developing custom robotics to perform lens inspection, alignment, and placement (Task 4 ). Required for expanding CPV module mfg. capacity. Cost is from competitive quotes. | C24: 32900 | D24: 86500 | F24: =SUM(C24:E24) -> 119400
F25: =SUM(C25:E25) -> 0
F26: 0
F27: 0
F28: 0
F29: 0
F30: 0
F31: 0
F32: 0
F33: 0
F34: 0
A35: Total Vendor / Organization | C35: =SUM(C25:C34) -> 0 | D35: =SUM(D25:D34) -> 0 | E35: =SUM(E25:E34) -> 0 | F35: =SUM(F25:F34) -> 0
A37: FFRDC Name/Organization | B37: Purpose | C37: Year 1 Costs | D37: Year 2 Costs | E37: Year 3 Costs | F37: Project Total
F38: =SUM(C38:E38) -> 0
F39: =SUM(C39:E39) -> 0
F40: =SUM(C40:E40) -> 0
F41: 0
F42: =SUM(C42:E42) -> 0
F43: 0
F44: 0
F45: 0
F46: 0
F47: =SUM(C47:E47) -> 0
A48: Total FFRDC | C48: =SUM(C38:C47) -> 0 | D48: =SUM(D38:D47) -> 0 | E48: =SUM(E38:E47) -> 0 | F48: =SUM(C48:E48) -> 0
A50: Total Contractual | C50: =C35+C48+C21 -> 0 | D50: =D35+D48+D21 -> 0 | E50: =E35+E48+E21 -> 0 | F50: =F35+F48+F21 -> 0
A52: Additional Explanations/Comments (as necessary):

Sheet g. Construction
A1: Budget Justification for SF 424A Budget | B1: Award Recipient: | C1: ='Instructions and Summary'!B4 -> 0 | D1: ='Instructions and Summary'!G1 -> 8/24/2021 V 6.19
A2: g. Construction
A3: PLEASE READ!!! "Construction" for the purpose of budgeting, is defined as all types of work done on a particular building, including erecting, altering, or remodeling. Construction conducted by the award recipient is entered on this page. Any construction work that is performed by a vendor or subrecipient to the award recipient should be entered under f. Contractual. List all proposed construction below, providing a basis of cost such as engineering estimates, prior construction, etc., and briefly justify its need as it applies to the Statement of Project Objectives and accompanying Technical Milestones and Deliverables being performed.
A5: Overall description of construction activities:
A6: EXAMPLE ONLY!!! "Build wind turbine platform"
A8: General Description | B8: Cost | C8: Basis of Cost | D8: Justification of Need
A9: EXAMPLE ONLY!!! Three days of excavation for platform site | B9: 28000 | C9: Engineering estimate | D9: Site must be prepared for construction of platform.
A10: Year 1
A16: Year 1 Total | B16: =SUM(B11:B15) -> 0
A18: Year 2
A24: Year 2 Total | B24: =SUM(B19:B23) -> 0
A26: Year 3
A32: Year 3 Total | B32: =SUM(B27:B31) -> 0
A34: PROJECT TOTAL | B34: =-B32+B24+B16 -> 0
A36: Additional Explanations/Comments (as necessary):

Sheet h. Other
A1: Budget Justification for SF 424A Budget Award Recipient: | C1: ='Instructions and Summary'!B4 -> 0 | F1: ='Instructions and Summary'!G1 -> 8/24/2021 V 6.19
A2: h. Other Direct Costs
A3: PLEASE READ!!! Applicants must provide and justify proposed costs related to Other Direct Costs for each year of the entire budget period. Other Direct Costs are direct cost items required for the project which do not fit clearly into other categories, and are not included in the indirect pool for which the indirect rate is being applied to this project. Other Direct Costs include Technology Transfer and Outreach (TT&O) activities. Examples of TT&O activities that are allowable under Federal costs principles are provided in Section IV.G.8 of the FOA. Applicants must provide a basis of cost (e.g., vendor quotes, prior purchases of similar or like items, published price list, etc.). Note for TT&O Activities: Applicants may choose to not include TT&O activities if appropriate, and do not need a waiver to do so. If applicants do decide to include TT&O, all budget activities must relate to achieving specific objectives, Technical Milestones and Deliverables outlined in the Statement of Project Objectives. Applicants must list TT&O costs with a clear description of what activities are to take place (e.g. travel to the Annual ARPA-E Innovation Summit, work devoted to a commercialization plan, etc.). Only TT&O costs that relate to a specific technology funded by ARPA-E will be allowed, if the costs are allowable in accordance with Federal cost principles. For TT&O activities aimed at advancing a portfolio of technologies and/or products owned by the Recipient or Project Partner, only the portion of costs specifically attributable to advancing the ARPA-E funded technology will be reimbursed. Applicants are required to certify in the Full Application that they have met the 5% requirement for TT&O expenditures in their SF-424A and Budget Justification unless they submit an accompanying waiver request. Applicants may seek a waiver of the TT&O requirement in whole or in part by including an explicit request in their Full Application. In their request, Applicants must describe the proposed technology’s stage of development (i.e., early-stage or late-stage) with reference to Technology Readiness Levels (TRLs). In addition, Applicants must describe in detail why the TT&O requirement should not be applied to their project or why they are proposing less than the required 5%. Note for Patent Costs: ARPA-E will reimburse up to $30,000 in expenditures incurred under the funding agreement for costs and fees relating to the filing and prosecution of U.S. patent applications on subject inventions disclosed to ARPA-E and DOE in accordance with Attachment 2 to the funding agreement (http://arpa-e.energy.gov/FundingAgreements/CooperativeAgreements.aspx). Prime Recipients may use costs and fees in excess of $30,000 to meet their cost share obligations under the funding agreement. ARPA-E will not reimburse any costs and fees relating to the filing and prosecution of foreign patent applications on subject inventions disclosed to ARPA-E and DOE in accordance with Attachment 2 to the funding agreement. However, Prime Recipients may use such costs and fees to meet their cost share obligations. For examples of allowable patent costs, please see Section IV.G.3 of the FOA. | I3: TT&O Totals (Optional)
I4: TT&O Personnel | J4: =SUMIFS($B$24:$B$90,$D$24:$D$90,"Yes",$E$24:$E$90,I4) -> 0
I5: TT&O Fringe | J5: =SUMIFS($B$24:$B$90,$D$24:$D$90,"Yes",$E$24:$E$90,I5) -> 0
I6: TT&O Travel | J6: 0
I7: TT&O Equipment | J7: 0
I8: TT&O Supplies | J8: 0
I9: TT&O Other | J9: 0
I10: TT&O Contractual | J10: 0
I11: TT&O Construction | J11: 0
I12: TT&O Total | J12: =SUM(J4:J11) -> 0
I14: TT&O Year 1 | J14: =SUMIF(D24:D43, "Yes", B24:B43) -> 0
I15: TT&O Year 2 | J15: =SUMIF(D47:D66, "Yes", B47:B66) -> 0
I16: TT&O Year 3 | J16: =SUMIF(D70:D89, "Yes", B70:B89) -> 0
A19: General description | B19: Cost | C19: Basis of Cost | D19: TT&O? | E19: TT&O Type | F19: Justification of Need
A20: EXAMPLE ONLY!!! Grad student tuition | B20: 16000 | C20: Established UCD costs | D20: No | F20: Support of graduate students working on project
A21: EXAMPLE ONLY!!! Contractual | B21: 10000 | C21: Vendor Quote | D21: No | F21: Personnel costs to develop commercialization plans
A22: EXAMPLE ONLY!!! Conferences | B22: 4000 | C22: Travel & Conference Expenses | D22: Yes | E22: TT&O Travel | F22: ARPA-E Energy Summit travel and registration
C23: Year 1 | I23: Yes
I24: No
A44: Year 1 Total | B44: =SUM(B24:B43) -> 0
C46: Year 2
A67: Year 2 Total | B67: =SUM(B47:B66) -> 0
C69: Year 3
A90: Year 3 Total | B90: =SUM(B70:B89) -> 0
A92: PROJECT TOTAL | B92: =B90+B67+B44 -> 0
A94: Additional Explanations/Comments (as necessary):

Sheet i. Indirect Costs
A1: Budget Justification for SF 424A Budget Award Recipient: | E1: ='Instructions and Summary'!B4 -> 0 | H1: ='Instructions and Summary'!G1 -> 8/24/2021 V 6.19
A2: i. Indirect Costs
A3: Rate type: | D3: Year 1 | E3: Year 2 | F3: Year 3 | G3: Total
D4: 0 | E4: 0 | F4: 0
D5: 0 | E5: 0 | F5: 0
D6: 0 | E6: 0 | F6: 0
D7: 0 | E7: 0 | F7: 0
D8: 0 | E8: 0 | F8: 0
A9: Total indirect costs requested: | D9: 0 | E9: 0 | F9: 0 | G9: =SUM(D9:F9) -> 0
A10: =IF(A14=A16,"One box should be checked in the indirect rate agreement section.","") -> One box should be checked in the indirect rate agreement section.
A12: Applicants are required to indicate if they have a Federally approved indirect rate agreement.
A13: If reimbursement for indirect costs is requested, a federally approved indirect rate agreement , or an indirect rate proposal is required in accordance with the instructions below. The indirect rate proposal must be accepted by ARPA-E for estimating purposes. Calculate the indirect rate/dollars and enter this information above. | K13: x
B14: An indirect rate has been negotiated with, or approved by, a Federal government agency. A copy of the latest rate agreement is included with the Full Application (*see information below).
B16: An indirect rate agreement has not been negotiated with, or approved by, a Federal government agency (*see information below).
B17: If an Applicant is selected for award negotiations and does not have a Federally approved indirect rate agreement, then the Applicant is required to submit an Indirect Rate Proposal to the ARPA-E Contracting Officer. A template for Indirect Rate Proposal is available at https://arpa-e.energy.gov/technologies/project-guidance/pre-award-guidance/required-forms-and-templates. The Applicant must provide this information to the ARPA-E Contracting Officer at ARPA-E-CO@hq.doe.gov within 2 days after the receiving the award notification. In the subject line of the email, please state “Rate Proposal” and include the Applicant’s name, FOA name and number, and application control number.
A20: *IMPORTANT: In the space provided below (or as an attachment) provide a complete explanation and the full calculations used to derive the total indirect costs. If the total indirect costs are a cumulative amount of more than one calculation or rate application, the explanation and calculations should identify all rates used, along with the base they were applied to (and how the base was derived), and a total for each (along with grand total). Do not average the rates and apply them to get one indirect cost percentage. NOTE: You must apply the indirect rate to both the Federal Share and Recipient Cost Share.
A22: Explanations/Comments/Calculations/Formula:

Sheet Cost Share
A1: Budget Justification for SF 424A Budget Award Recipient: | D1: ='Instructions and Summary'!B4 -> 0 | F1: ='Instructions and Summary'!G1 -> 8/24/2021 V 6.19
A2: Cost Share
A3: PLEASE READ!!! Applicants must provide and justify proposed costs related to Cost Share for each year of the entire budget period. Applicants must provide a detailed explanation of the cash or cash value of all cost share proposed for the project. Please refer to Section III.B of the FOA for guidance on allowable cost share contributions. Applicants selected for award negotiations must provide cost share commitment letters, as described in Section VI.B.3 of the FOA. Project teams are not permitted to receive fees or profits under ARPA-E awards. All monies must be spent on activities or equipment directly related to meeting the objectives in the Statement of Project Objectives and accompanying Technical Milestones and Deliverables. Additionally, foregone fee or profit by any member of the proposed Project Team may not be considered cost sharing under any resulting award.
A5: Organization/Source | B5: Type | C5: Type of Donor (MUST SELECT) | D5: Cost Share Item | E5: Year 1 Cost Share | F5: Year 2 Cost Share | G5: Year 3 Cost Share | H5: Total Project Cost Share
A6: EXAMPLE ONLY!!! ABC Company | B6: Cash | C6: Other | D6: Project partner ABC Company will provide 40 PV modules for product development at 50% off the of the retail price of $680 | E6: 13600 | H6: =SUM(E6:G6) -> 13600
H7: 0 | J7: Cash
H8: 0 | J8: In Kind
H9: 0 | J9: Other
H10: 0
H11: 0
H12: 0
H13: 0 | J13: Applicant | K13: =SUMIF($C$7:$C$24,J13,$E$7:$E$24) -> 0 | L13: =SUMIF($C$7:$C$24,J13,$F$7:$F$24) -> 0 | M13: =SUMIF($C$7:$C$24,J13,$G$7:$G$24) -> 0
H14: 0 | J14: State | K14: =SUMIF($C$7:$C$24,J14,$E$7:$E$24) -> 0 | L14: =SUMIF($C$7:$C$24,J14,$F$7:$F$24) -> 0 | M14: =SUMIF($C$7:$C$24,J14,$G$7:$G$24) -> 0
H15: 0 | J15: Other Sources | K15: 0 | L15: 0 | M15: 0
H16: 0
H17: 0
H18: 0
H19: 0
H20: 0
H21: 0
H22: 0
H23: 0
H24: 0
A25: Totals | E25: =SUM(E7:E24) -> 0 | F25: =SUM(F7:F24) -> 0 | G25: =SUM(G7:G24) -> 0 | H25: =SUM(H7:H24) -> 0
A27: Total Project Cost: | D27: ='Instructions and Summary'!E24 -> 0 | E27: Cost Share Percent of Award: | H27: =IFERROR(H25/D27,"") -> 
A29: Additional Explanations/Comments (as necessary):
